fUSD/lending_fUSD_20260425
["ID","MTS","AMOUNT","RATE_DAILY","PERIOD"]
[421119115,1777086647122,-152.0,0.00016768,14]
[421119116,1777086647132,-151.0,0.00016788,3]
[421119117,1777086647142,-151.0,0.0001679,2]
[421119118,1777086647151,-1280.14064231,0.00016837,2]
[421119119,1777086647161,-559.0,0.00016967,2]
[421119120,1777086647171,-697.0,0.00016967,2]
[421119121,1777086647180,-252.0,0.00016967,2]
[421119122,1777086647190,-887.0,0.00016967,2]
[421119123,1777086647199,-1182.0,0.00016967,2]
[421119124,1777086647209,-1176.0,0.00016967,2]
[421119125,1777086647218,-375.0,0.00016967,2]
[421119126,1777086647228,-270.0,0.00016967,2]
[421119127,1777086647237,-1297.0,0.00016967,2]
[421119128,1777086647246,-668.0,0.00016967,2]
[421119129,1777086647256,-1067.68026273,0.00016986,2]
[421119130,1777086647266,-1000.0,0.00016986,2]
[421119131,1777086647276,-350.0,0.00017,2]
[421119132,1777086647286,-152.0,0.00017045,15]
[421119133,1777086647295,-865.0,0.00017063,3]
[421119134,1777086647305,-517.2,0.00017086,2]
[421119135,1777086647314,-500.0,0.00017094,7]
[421119136,1777086647324,-500.0,0.00017094,7]
[421119137,1777086647335,-7205.14,0.000171,2]
[421119138,1777086647345,-590.94,0.000171,2]
[421119139,1777086647354,-1117.0,0.00017133,2]
[421119140,1777086647363,-6399.0,0.00017148,2]
[421119141,1777086647373,-504.0,0.00017246,5]
[421119142,1777086647382,-280.0,0.0001727,2]
[421119143,1777086647392,-152.0,0.00017322,16]
[421119144,1777086647402,-517.2,0.0001741,2]
[421119145,1777086647412,-150.0,0.00017428,2]
[421119146,1777086647421,-151.0,0.0001744,3]
[421119147,1777086647431,-1500.0,0.00017534,2]
[421119148,1777086647440,-152.0,0.00017599,17]
[421119149,1777086647450,-638.3,0.0001761,2]
[421119150,1777086647459,-865.0,0.0001768,3]
[421119151,1777086647469,-517.2,0.00017733,2]
[421119152,1777086647479,-7851.14,0.000178,2]
[421119153,1777086647490,-763.3,0.00017808,2]
[421119154,1777086647500,-228.99,0.00017808,2]
[421119155,1777086647509,-800.0,0.00017808,12]
[421119156,1777086647519,-152.0,0.00017876,18]
[421119157,1777086647528,-200.0,0.00017878,2]
[421119158,1777086647538,-289.0,0.00017905,2]
[421119159,1777086647547,-150.0,0.00017905,2]
[421119160,1777086647557,-254.0,0.00017905,2]
[421119161,1777086647568,-200.0,0.00017937,2]
[421119162,1777086647577,-200.0,0.00017937,2]
[421119163,1777086647587,-200.0,0.00017937,2]
[421119164,1777086647596,-200.0,0.00017937,2]
[421119165,1777086647606,-200.0,0.00017937,2]
[421119166,1777086647615,-200.0,0.00017937,2]
[421119167,1777086647625,-200.0,0.00017937,2]
[421119168,1777086647635,-289.0,0.00017937,2]
[421119169,1777086647644,-790.69160991,0.00017957,2]
[421119170,1777086647654,-559.0,0.00017967,2]
[421119171,1777086647663,-697.0,0.00017967,2]
[421119172,1777086647672,-252.0,0.00017967,2]
[421119173,1777086647682,-887.0,0.00017967,2]
[421119174,1777086647691,-1182.0,0.00017967,2]
[421119175,1777086647701,-1176.0,0.00017967,2]
[421119176,1777086647710,-375.0,0.00017967,2]
[421119177,1777086647720,-270.0,0.00017967,2]
[421119178,1777086647729,-1297.0,0.00017967,2]
[421119179,1777086647739,-668.0,0.00017967,2]
[421119180,1777086647749,-1117.0,0.0001799,2]
[421119181,1777086647758,-150.0,0.00017999,2]
[421119182,1777086647768,-150.0,0.00017999,2]
[421119183,1777086647778,-150.0,0.00017999,2]
[421119184,1777086647787,-150.0,0.00017999,2]
[421119185,1777086647797,-159.0,0.00017999,2]
[421119186,1777086647807,-151.0,0.00018,2]
[421119187,1777086647816,-716.72,0.00018,10]
[421119188,1777086647826,-517.2,0.00018057,2]
[421119189,1777086647835,-2000.0,0.00018082,2]
[421119190,1777086647845,-151.0,0.00018091,3]
[421119191,1777086647855,-6399.0,0.00018148,2]
[421119192,1777086647865,-152.0,0.00018153,19]
[421119193,1777086647874,-1215.49642839,0.00018158,7]
[421119194,1777086647883,-176.55,0.00018172,2]
[421119195,1777086647893,-504.0,0.00018183,6]
[421119196,1777086647903,-571.46,0.000182,10]
[421119197,1777086647913,-311.52,0.000182,10]
[421119198,1777086647923,-2475.0,0.00018265,2]
[421119199,1777086647932,-416.0,0.00018265,2]
[421119200,1777086647942,-865.0,0.00018297,3]
[421119201,1777086647951,-700.49,0.000183,10]
[421119202,1777086647960,-303.62,0.000183,10]
[421119203,1777086647970,-574.288,0.00018365,2]
[421119204,1777086647979,-517.2,0.00018381,2]
[421119205,1777086647988,-351.25,0.000184,2]
[421119206,1777086647998,-152.0,0.0001843,20]
[421119207,1777086648007,-500.0,0.000185,2]
[421119208,1777086648016,-151.0,0.000185,2]
[421119209,1777086648026,-1650.28667077,0.00018524,37]
[421119210,1777086648035,-2500.0,0.0001863,2]
[421119211,1777086648044,-474.28,0.00018681,2]
[421119212,1777086648054,-7205.14,0.000187,2]
[421119213,1777086648063,-590.94,0.000187,2]
[421119214,1777086648073,-517.2,0.00018705,2]
[421119215,1777086648083,-152.0,0.00018707,21]
[421119216,1777086648093,-200.0,0.00018716,2]
[421119217,1777086648102,-200.0,0.00018716,2]
[421119218,1777086648111,-200.0,0.00018716,2]
[421119219,1777086648120,-200.0,0.00018716,2]
[421119220,1777086648130,-200.0,0.00018716,2]
[421119221,1777086648139,-200.0,0.00018716,2]
[421119222,1777086648148,-200.0,0.00018716,2]
[421119223,1777086648158,-200.0,0.00018716,2]
[421119224,1777086648168,-200.0,0.00018716,2]
[421119225,1777086648178,-199.0,0.00018716,2]
[421119226,1777086648188,-151.0,0.00018743,3]
[421119227,1777086648198,-153.3457,0.00018822,2]
[421119228,1777086648208,-1472.24738835,0.000189,5]
[421119229,1777086648218,-865.0,0.00018914,3]
[421119230,1777086648229,-560.48197189,0.00018967,2]
[421119231,1777086648238,-714.19755734,0.00018967,2]
[421119232,1777086648248,-259.85951027,0.00018967,2]
[421119233,1777086648257,-892.57777299,0.00018967,2]
[421119234,1777086648266,-1189.92516773,0.00018967,2]
[421119235,1777086648276,-1178.0,0.00018967,2]
[421119236,1777086648285,-388.0145651,0.00018967,2]
[421119237,1777086648295,-280.71548365,0.00018967,2]
[421119238,1777086648305,-1314.46124388,0.00018967,2]
[421119239,1777086648314,-670.13167771,0.00018967,2]
[421119240,1777086648324,-152.0,0.00018984,22]
[421119241,1777086648334,-2000.0,0.00019,2]
[421119242,1777086648344,-400.0,0.00019,2]
[421119243,1777086648353,-517.2,0.00019029,2]
[421119244,1777086648363,-7851.14,0.000191,2]
[421119245,1777086648372,-504.0,0.0001912,6]
[421119246,1777086648382,-6399.0,0.00019148,2]
[421119247,1777086648391,-500.0,0.00019176,2]
[421119248,1777086648401,-817.78,0.00019178,30]
[421119249,1777086648411,-245.33,0.00019178,2]
[421119250,1777086648420,-530.87520047,0.00019178,2]
[421119251,1777086648429,-150.0,0.00019178,2]
[421119252,1777086648439,-150.0,0.00019178,2]
[421119253,1777086648449,-150.0,0.00019178,2]
[421119254,1777086648458,-186.31112063,0.00019178,2]
[421119255,1777086648468,-774.49,0.00019178,22]
[421119256,1777086648478,-150.0,0.00019178,2]
[421119257,1777086648487,-150.0,0.00019178,2]
[421119258,1777086648497,-3000.0,0.00019178,2]
[421119259,1777086648506,-281.63611816,0.00019242,7]
[421119260,1777086648516,-804.17102365,0.00019249,2]
[421119261,1777086648525,-668.65185757,0.00019254,2]
[421119262,1777086648535,-152.0,0.00019261,23]
[421119263,1777086648544,-500.0,0.00019286,7]
[421119264,1777086648555,-500.0,0.00019286,7]
[421119265,1777086648564,-515.0,0.00019323,120]
[421119266,1777086648574,-517.2,0.00019352,2]
[421119267,1777086648584,-151.0,0.00019394,3]
[421119268,1777086648594,-151.0,0.000195,2]
[421119269,1777086648603,-173.0,0.00019529,2]
[421119270,1777086648613,-150.0,0.00019529,2]
[421119271,1777086648622,-272.0,0.00019529,2]
[421119272,1777086648632,-865.0,0.00019531,3]
[421119273,1777086648642,-152.0,0.00019538,24]
[421119274,1777086648651,-150.0,0.00019584,2]
[421119275,1777086648661,-189.0,0.00019598,2]
[421119276,1777086648670,-150.0,0.0001961,2]
[421119277,1777086648681,-150.0,0.0001961,2]
[421119278,1777086648690,-150.0,0.0001961,2]
[421119279,1777086648699,-262.0,0.0001961,2]
[421119280,1777086648709,-173.0,0.00019656,2]
[421119281,1777086648718,-517.2,0.00019676,2]
[421119282,1777086648728,-351.25,0.000197,2]
[421119283,1777086648737,-3500.0,0.00019726,2]
[421119284,1777086648748,-250.0,0.00019726,2]
[421119285,1777086648757,-250.0,0.00019726,2]
[421119286,1777086648767,-200.0,0.00019755,2]
[421119287,1777086648777,-150.0,0.00019759,2]
[421119288,1777086648787,-150.0,0.00019759,2]
[421119289,1777086648797,-232.0,0.00019759,2]
[421119290,1777086648806,-174.0,0.00019762,2]
[421119291,1777086648816,-157.53,0.00019786,2]
[421119292,1777086648826,-157.53,0.00019786,2]
[421119293,1777086648836,-157.53,0.00019788,2]
[421119294,1777086648846,-157.53,0.00019788,2]
[421119295,1777086648856,-157.53,0.00019788,2]
[421119296,1777086648866,-157.53,0.0001979,2]
[421119297,1777086648876,-157.53,0.0001979,2]
[421119298,1777086648886,-157.53,0.0001979,2]
[421119299,1777086648895,-2000.0,0.000198,10]
[421119300,1777086648905,-157.0,0.000198,10]
[421119301,1777086648914,-152.0,0.00019815,25]
[421119302,1777086648923,-272.02815886,0.00019815,5]
[421119303,1777086648934,-501.47347724,0.00019898,5]
[421119304,1777086648943,-3000.0,0.00019898,5]
[421119305,1777086648952,-7205.14,0.000199,2]
[421119306,1777086648962,-590.94,0.000199,2]
[421119307,1777086648971,-247.0,0.00019916,2]
[421119308,1777086648981,-3226.0,0.00019989,15]
[421119309,1777086648992,-176.55,0.00019989,2]
[421119310,1777086649001,-152.0,0.0002,2]
[421119311,1777086649011,-1500.0,0.0002,2]
[421119312,1777086649020,-22807.4262,0.0002,3]
[421119313,1777086649030,-221.94492406,0.0002,120]
[421119314,1777086649039,-150.07008821,0.0002,2]
[421119315,1777086649049,-213.18796352,0.0002,90]
[421119316,1777086649058,-200.0,0.0002,2]
[421119317,1777086649068,-10334.54581162,0.0002,120]
[421119318,1777086649077,-212.03,0.0002,2]
[421119319,1777086649087,-202.54804881,0.0002,10]
[421119320,1777086649098,-535.8360828,0.0002,7]
[421119321,1777086649107,-200.0,0.0002,2]
[421119322,1777086649116,-1055.07363887,0.0002,2]
[421119323,1777086649127,-2975.75388128,0.0002,7]
[421119324,1777086649136,-2000.0,0.0002,2]
[421119325,1777086649145,-1042.2722,0.0002,2]
[421119326,1777086649156,-2000.0,0.0002,2]
[421119327,1777086649165,-151.0,0.0002,2]
[421119328,1777086649175,-921.0,0.0002,2]
[421119329,1777086649184,-517.2,0.0002,2]
[421119330,1777086649193,-1234.8918,0.0002,2]
[421119331,1777086649203,-210.95626749,0.0002,60]
[421119332,1777086649213,-903.25015803,0.0002,2]
[421119333,1777086649222,-2110.0,0.0002,2]
[421119334,1777086649232,-2000.0,0.0002,2]
[421119335,1777086649241,-200.0,0.0002,10]
[421119336,1777086649251,-162.24807931,0.0002,7]
[421119337,1777086649502,-160.0,0.0002,7]
[421119338,1777086649529,-825.0,0.0002,30]
[421119339,1777086649539,-192.86,0.0002,2]
[421119340,1777086649548,-192.86,0.0002,2]
[421119341,1777086649558,-905.0,0.0002,2]
[421119342,1777086649568,-153.48584386,0.0002,20]
[421119343,1777086649578,-3559.0,0.0002,2]
[421119344,1777086649587,-200.225048,0.0002,2]
[421119345,1777086649597,-150.0,0.0002,2]
[421119346,1777086649607,-150.0,0.0002,2]
[421119347,1777086649616,-174.97032536,0.0002,2]
[421119348,1777086649626,-9785.0,0.00020002,2]
[421119349,1777086649635,-2000.0,0.0002001,2]
[421119350,1777086649645,-2000.0,0.0002002,2]
[421119351,1777086649655,-2818.468101,0.0002003,2]
[421119352,1777086649664,-151.0,0.00020046,3]
[421119353,1777086649674,-504.0,0.00020056,7]
[421119354,1777086649684,-7851.14,0.000201,7]
[421119355,1777086649694,-300.0,0.000201,10]
[421119356,1777086649704,-530.87520047,0.00020117,2]
[421119357,1777086649713,-291.0,0.00020122,2]
[421119358,1777086649723,-6399.0,0.00020148,2]
[421119359,1777086649733,-865.0,0.00020149,3]
[421119360,1777086649743,-4000.0,0.00020274,2]
[421119361,1777086649753,-350.0,0.00020274,2]
[421119362,1777086649762,-350.0,0.00020274,2]
[421119363,1777086649772,-515.0,0.00020289,120]
[421119364,1777086649781,-150.0,0.00020328,2]
[421119365,1777086649790,-150.0,0.00020328,2]
[421119366,1777086649800,-199.0,0.00020328,2]
[421119367,1777086649810,-257.0,0.0002034,120]
[421119368,1777086649820,-172.0,0.0002034,120]
[421119369,1777086649830,-172.0,0.0002034,120]
[421119370,1777086649839,-172.0,0.0002034,120]
[421119371,1777086649850,-150.0,0.00020443,2]
[421119372,1777086649859,-2110.0,0.000205,2]
[421119373,1777086649870,-3624.01,0.00020548,2]
[421119374,1777086649880,-3624.01,0.00020548,2]
[421119375,1777086649890,-3624.02,0.00020548,2]
[421119376,1777086649899,-151.0,0.00020697,3]
[421119377,1777086649909,-865.0,0.00020766,3]
[421119378,1777086649919,-4500.0,0.00020822,2]
[421119379,1777086649929,-450.0,0.00020822,2]
[421119380,1777086649938,-450.0,0.00020822,2]
[421119381,1777086649949,-474.28,0.00020862,2]
[421119382,1777086649958,-477.49,0.00020862,2]
[421119383,1777086649968,-474.31,0.00020862,2]
[421119384,1777086649978,-6203.66297633,0.000209,30]
[421119385,1777086649988,-200.0,0.000209,2]
[421119386,1777086649998,-504.0,0.00020993,8]
[421119387,1777086650009,-150.0,0.00021,2]
[421119388,1777086650019,-150.0,0.00021,2]
[421119389,1777086650029,-150.0,0.00021,2]
[421119390,1777086650038,-150.0,0.00021,2]
[421119391,1777086650048,-150.0,0.00021,2]
[421119392,1777086650058,-150.0,0.00021,2]
[421119393,1777086650068,-150.0,0.00021,2]
[421119394,1777086650078,-150.0,0.00021,2]
[421119395,1777086650087,-150.0,0.00021,2]
[421119396,1777086650098,-150.0,0.00021,2]
[421119397,1777086650108,-150.0,0.00021,2]
[421119398,1777086650120,-150.0,0.00021,2]
[421119399,1777086650131,-150.0,0.00021,2]
[421119400,1777086650143,-193.43338259,0.00021,2]
[421119401,1777086650153,-1204.76271213,0.00021,2]
[421119402,1777086650162,-198.83879315,0.00021,2]
[421119403,1777086650172,-160.0,0.00021,7]
[421119404,1777086650181,-250000.0,0.00021,2]
[421119405,1777086650192,-20000.0,0.00021,4]
[421119406,1777086650201,-150.64116675,0.00021,2]
[421119407,1777086650211,-99999.999,0.00021,5]
[421119408,1777086650222,-1678.73,0.00021,2]
[421119409,1777086650231,-450.0,0.00021,2]
[421119410,1777086650241,-8542.0,0.00021034,2]
[421119411,1777086650251,-530.87520047,0.00021057,2]
[421119412,1777086650260,-7205.14,0.000211,2]
[421119413,1777086650270,-7851.14,0.000211,7]
[421119414,1777086650280,-590.94,0.000211,2]
[421119415,1777086650291,-6399.0,0.00021148,2]
[421119416,1777086650301,-2475.0,0.00021265,2]
[421119417,1777086650310,-416.0,0.00021265,2]
[421119418,1777086650320,-500.0,0.0002127,2]
[421119419,1777086650329,-515.0,0.00021304,120]
[421119420,1777086650339,-500.0,0.00021336,2]
[421119421,1777086650349,-151.0,0.00021349,3]
[421119422,1777086650358,-257.0,0.00021357,120]
[421119423,1777086650368,-172.0,0.00021357,120]
[421119424,1777086650378,-172.0,0.00021357,120]
[421119425,1777086650387,-5000.0,0.0002137,2]
[421119426,1777086650398,-550.0,0.0002137,2]
[421119427,1777086650408,-574.08692065,0.0002137,2]
[421119428,1777086650417,-865.0,0.00021383,3]
[421119429,1777086650427,-1317.55,0.0002142,2]
[421119430,1777086650437,-3010.75,0.0002142,2]
[421119431,1777086650446,-150.0,0.00021443,2]
[421119432,1777086650456,-500.0,0.00021478,7]
[421119433,1777086650466,-500.0,0.00021478,7]
[421119434,1777086650476,-224.35296536,0.000215,2]
[421119435,1777086650486,-716.72,0.000216,15]
[421119436,1777086650495,-2000.0,0.000218,20]
[421119437,1777086650505,-571.46,0.000218,15]
[421119438,1777086650515,-311.52,0.000218,15]
[421119439,1777086650524,-176.55,0.00021806,2]
[421119440,1777086650534,-1551.5962274,0.0002189,2]
[421119441,1777086650544,-182.26741343,0.0002189,2]
[421119442,1777086650554,-200.0,0.000219,2]
[421119443,1777086650563,-500.0,0.00021915,2]
[421119444,1777086650574,-339.36151,0.00021918,2]
[421119445,1777086650583,-339.36151,0.00021918,2]
[421119446,1777086650593,-339.36151,0.00021918,2]
[421119447,1777086650602,-339.36151,0.00021918,2]
[421119448,1777086650612,-339.36151,0.00021918,2]
[421119449,1777086650623,-339.36151,0.00021918,2]
[421119450,1777086650633,-339.36151,0.00021918,2]
[421119451,1777086650642,-339.36151,0.00021918,2]
[421119452,1777086650653,-339.36151,0.00021918,2]
[421119453,1777086650663,-339.36151,0.00021918,2]
[421119454,1777086650672,-339.36151,0.00021918,2]
[421119455,1777086650682,-339.36151,0.00021918,2]
[421119456,1777086650692,-339.36151,0.00021918,2]
[421119457,1777086650701,-339.36151,0.00021918,2]
[421119458,1777086650711,-339.36151,0.00021918,2]
[421119459,1777086650720,-339.36151,0.00021918,2]
[421119460,1777086650730,-339.36151,0.00021918,2]
[421119461,1777086650740,-339.36151,0.00021918,2]
[421119462,1777086650750,-339.36151,0.00021918,2]
[421119463,1777086650759,-339.361511,0.00021918,2]
[421119464,1777086650769,-151.0,0.00021918,2]
[421119465,1777086650779,-151.0,0.00021918,2]
[421119466,1777086650788,-151.0,0.00021918,2]
[421119467,1777086650798,-151.0,0.00021918,2]
[421119468,1777086650808,-151.0,0.00021918,2]
[421119469,1777086650818,-151.0,0.00021918,2]
[421119470,1777086650827,-151.0,0.00021918,2]
[421119471,1777086650837,-151.0,0.00021918,2]
[421119472,1777086650846,-151.0,0.00021918,2]
[421119473,1777086650856,-151.0,0.00021918,2]
[421119474,1777086650866,-151.0,0.00021918,2]
[421119475,1777086650876,-292.919101,0.00021918,2]
[421119476,1777086650886,-500.0,0.00021918,15]
[421119477,1777086650896,-1150.0,0.00021918,7]
[421119478,1777086650905,-166.0,0.00021918,2]
[421119479,1777086650915,-166.0,0.00021918,2]
[421119480,1777086650924,-166.0,0.00021918,2]
[421119481,1777086650934,-650.0,0.00021918,2]
[421119482,1777086650944,-166.0,0.00021918,2]
[421119483,1777086650953,-166.0,0.00021918,2]
[421119484,1777086650963,-166.0,0.00021918,2]
[421119485,1777086650972,-166.0,0.00021918,2]
[421119486,1777086650982,-172.0,0.00021918,2]
[421119487,1777086650992,-5500.0,0.00021918,2]
[421119488,1777086651001,-166.0,0.00021918,2]
[421119489,1777086651011,-150.0,0.00021918,2]
[421119490,1777086651021,-171.02011466,0.00021918,2]
[421119491,1777086651031,-150.0,0.00021918,2]
[421119492,1777086651040,-500.0,0.00021918,2]
[421119493,1777086651050,-500.0,0.00021918,2]
[421119494,1777086651060,-500.0,0.00021918,2]
[421119495,1777086651070,-500.0,0.00021918,2]
[421119496,1777086651080,-500.0,0.00021918,2]
[421119497,1777086651089,-500.0,0.00021918,2]
[421119498,1777086651099,-500.0,0.00021918,2]
[421119499,1777086651109,-498.73075653,0.00021918,2]
[421119500,1777086651118,-150.0,0.00021918,2]
[421119501,1777086651128,-150.0,0.00021918,2]
[421119502,1777086651137,-150.0,0.00021918,2]
[421119503,1777086651147,-150.0,0.00021918,2]
[421119504,1777086651157,-150.0,0.00021918,2]
[421119505,1777086651167,-150.0,0.00021918,2]
[421119506,1777086651176,-150.0,0.00021918,2]
[421119507,1777086651186,-150.0,0.00021918,2]
[421119508,1777086651196,-150.0,0.00021918,2]
[421119509,1777086651205,-150.0,0.00021918,2]
[421119510,1777086651215,-150.0,0.00021918,2]
[421119511,1777086651224,-150.0,0.00021918,2]
[421119512,1777086651234,-150.0,0.00021918,2]
[421119513,1777086651244,-150.0,0.00021918,2]
[421119514,1777086651253,-150.0,0.00021918,2]
[421119515,1777086651263,-150.0,0.00021918,2]
[421119516,1777086651272,-150.0,0.00021918,2]
[421119517,1777086651282,-150.0,0.00021918,2]
[421119518,1777086651296,-150.0,0.00021918,2]
[421119519,1777086651305,-150.0,0.00021918,2]
[421119520,1777086651314,-150.0,0.00021918,2]
[421119521,1777086651323,-152.37049384,0.00021918,2]
[421119522,1777086651333,-504.0,0.0002193,9]
[421119523,1777086651342,-500.0,0.00021978,2]
[421119524,1777086651352,-1000.0,0.00021979,2]
[421119525,1777086651362,-1000.0,0.00021979,2]
[421119526,1777086651372,-1000.0,0.00021979,2]
[421119527,1777086651381,-1000.0,0.00021979,2]
[421119528,1777086651391,-1000.0,0.00021979,2]
[421119529,1777086651400,-1000.0,0.00021979,2]
[421119530,1777086651410,-1000.0,0.00021979,2]
[421119531,1777086651420,-1000.0,0.00021979,2]
[421119532,1777086651431,-1000.0,0.00021979,2]
[421119533,1777086651440,-1000.0,0.00021979,2]
[421119534,1777086651450,-1000.0,0.00021979,2]
[421119535,1777086651460,-1000.0,0.00021979,2]
[421119536,1777086651470,-1000.0,0.00021979,2]
[421119537,1777086651480,-1000.0,0.00021979,2]
[421119538,1777086651490,-1000.0,0.00021979,2]
[421119539,1777086651501,-1000.0,0.00021979,2]
[421119540,1777086651511,-1000.0,0.00021979,2]
[421119541,1777086651521,-1000.0,0.00021979,2]
[421119542,1777086651531,-1000.0,0.00021979,2]
[421119543,1777086651540,-1000.0,0.00021979,2]
[421119544,1777086651550,-1000.0,0.00021979,2]
[421119545,1777086651560,-1000.0,0.00021979,2]
[421119546,1777086651570,-1000.0,0.00021979,2]
[421119547,1777086651580,-1000.0,0.00021979,2]
[421119548,1777086651589,-1000.0,0.00021979,2]
[421119549,1777086651599,-1000.0,0.00021979,2]
[421119550,1777086651609,-1000.0,0.00021979,2]
[421119551,1777086651618,-1000.0,0.00021979,2]
[421119552,1777086651628,-1000.0,0.00021979,2]
[421119553,1777086651637,-1000.0,0.00021979,2]
[421119554,1777086651647,-1000.0,0.00021979,2]
[421119555,1777086651657,-1000.0,0.00021979,2]
[421119556,1777086651667,-1000.0,0.00021979,2]
[421119557,1777086651677,-1000.0,0.00021979,2]
[421119558,1777086651687,-1000.0,0.00021979,2]
[421119559,1777086651697,-1000.0,0.00021979,2]
[421119560,1777086651706,-1000.0,0.00021979,2]
[421119561,1777086651716,-1000.0,0.00021979,2]
[421119562,1777086651726,-1000.0,0.00021979,2]
[421119563,1777086651735,-1000.0,0.00021979,2]
[421119564,1777086651745,-1000.0,0.00021979,2]
[421119565,1777086651754,-1000.0,0.00021979,2]
[421119566,1777086651764,-1000.0,0.00021979,2]
[421119567,1777086651773,-1000.0,0.00021979,2]
[421119568,1777086651783,-1000.0,0.00021979,2]
[421119569,1777086651793,-1000.0,0.00021979,2]
[421119570,1777086651803,-1000.0,0.00021979,2]
[421119571,1777086651812,-1000.0,0.00021979,2]
[421119572,1777086651822,-1000.0,0.00021979,2]
[421119573,1777086651832,-1000.0,0.00021979,2]
[421119574,1777086651841,-206.01,0.00021984,2]
[421119575,1777086651851,-833.92535153,0.00021988,2]
[421119576,1777086651860,-693.3919763,0.00021993,2]
[421119577,1777086651870,-530.87520047,0.00021996,2]
[421119578,1777086651880,-558.72191565,0.00021999,2]
[421119579,1777086651890,-809.78617044,0.00022,7]
[421119580,1777086652019,-164.92,0.00022,2]
[421119581,1777086652029,-160.0,0.00022,2]
[421119582,1777086652040,-363333.07956565,0.00022,4]
[421119583,1777086652051,-678.21,0.00022,30]
[421119584,1777086652061,-865.0,0.00022,3]
[421119585,1777086652070,-151.0,0.00022,3]
[421119586,1777086652081,-157.65303396,0.00022,3]
[421119587,1777086652091,-502.0,0.00022029,2]
[421119588,1777086652102,-500.0,0.00022029,2]
[421119589,1777086652112,-500.0,0.00022029,2]
[421119590,1777086652121,-442.0,0.00022029,2]
[421119591,1777086652132,-800.0,0.00022029,2]
[421119592,1777086652142,-800.0,0.00022029,2]
[421119593,1777086652151,-800.0,0.00022029,2]
[421119594,1777086652161,-800.0,0.00022029,2]
[421119595,1777086652171,-800.0,0.00022029,2]
[421119596,1777086652181,-200.0,0.00022029,2]
[421119597,1777086652192,-200.0,0.00022029,2]
[421119598,1777086652202,-200.0,0.00022029,2]
[421119599,1777086652212,-200.0,0.00022029,2]
[421119600,1777086652222,-200.0,0.00022029,2]
[421119601,1777086652231,-200.0,0.00022029,2]
[421119602,1777086652242,-200.0,0.00022029,2]
[421119603,1777086652252,-200.0,0.00022029,2]
[421119604,1777086652261,-200.0,0.00022029,2]
[421119605,1777086652270,-200.0,0.00022029,2]
[421119606,1777086652279,-200.0,0.00022029,2]
[421119607,1777086652288,-200.0,0.00022029,2]
[421119608,1777086652299,-200.0,0.00022029,2]
[421119609,1777086652308,-800.0,0.00022029,2]
[421119610,1777086652317,-800.0,0.00022029,2]
[421119611,1777086652327,-800.0,0.00022029,2]
[421119612,1777086652337,-800.0,0.00022029,2]
[421119613,1777086652346,-800.0,0.00022029,2]
[421119614,1777086652356,-200.0,0.00022029,2]